[Event "LJ Slovak Open 2022"]
[Site "Liptovsky Jan"]
[Date "2022.06.25"]
[Round "4.39"]
[White "Muller, Martin"]
[Black "Sokolovsky, Jakub"]
[Result "1/2-1/2"]
[ECO "D00"]
[WhiteElo "1476"]
[BlackElo "1613"]
[Annotator "NA RC"]
[PlyCount "101"]
[EventDate "2022.06.23"]
[EventType "swiss"]
[EventCountry "SVK"]
[SourceTitle "playchess.com"]
[Source "ChessBase"]
[SourceQuality "1"]
[TimeControl "3600+30"]

1. d4 {[%emt 0:00:17]} Nf6 {[%emt 0:01:01]} 2. Bf4 {[%emt 0:00:09]} d5 {[%emt 0:00:27]} 3. e3 {[%emt 0:00:24]} c5 {[%emt 0:00:24]} 4. c3 {[%emt 0:01:12]} Nc6 {[%emt 0:00:19]} 5. Bd3 {[%emt 0:02:01]} Qb6 {[%emt 0:01:24]} 6. Qb3 {[%emt 0:03:52]} c4 {[%emt 0:00:14]} 7. Qxb6 {[%emt 0:00:12]} axb6 {[%emt 0:00:02]} 8. Bc2 {[%emt 0:00:15]} b5 {[%emt 0:03:26]} 9. b4 {[%emt 0:03:17]} Bg4 {[%emt 0:05:41]} 10. Nd2 {[%emt 0:01:08]} e6 {[%emt 0:02:09]} 11. Ngf3 {[%emt 0:00:50]} Be7 {[%emt 0:03:48]} 12. h3 {[%emt 0:03:41]} Bh5 {[%emt 0:00:20]} 13. O-O {[%emt 0:00:32]} O-O {[%emt 0:01:16]} 14. a4 {[%emt 0:01:07]} bxa4 {[%emt 0:05:59]} 15. Bxa4 {[%emt 0:00:42]} Bxf3 {[%emt 0:07:11]} 16. gxf3 {[%emt 0:05:09]} Nd7 {[%emt 0:05:22]} 17. Bxc6 {[%emt 0:10:07]} bxc6 {[%emt 0:00:06]} 18. Bg3 {[%emt 0:04:02]} Nb6 {[%emt 0:01:23]} 19. Bc7 {[%emt 0:03:21]} Na4 {[%emt 0:01:11]} 20. Nb1 {[%emt 0:00:25]} Ra6 {[%emt 0:06:48]} 21. Rc1 {[%emt 0:01:04]} Rfa8 {[%emt 0:01:09]} 22. Rc2 {[%emt 0:03:36]} Bd8 {[%emt 0:05:41]} 23. Bxd8 {[%emt 0:06:39]} Rxd8 {[%emt 0:00:01]} 24. Rca2 {[%emt 0:00:13]} Rda8 {[%emt 0:00:29]} 25. Kf1 {[%emt 0:00:21]} g6 {[%emt 0:01:45]} 26. f4 {[%emt 0:00:57]} Kg7 {[%emt 0:00:30]} 27. f3 {[%emt 0:00:59]} Kf6 {[%emt 0:00:30]} 28. Kf2 {[%emt 0:00:13]} h5 {[%emt 0:01:30]} 29. h4 {[%emt 0:00:45]} Ke7 {[%emt 0:00:09]} 30. e4 {[%emt 0:00:46]} Kd7 {[%emt 0:00:42]} 31. Ke3 {[%emt 0:00:31]} Kc7 {[%emt 0:00:46]} 32. Kd2 {[%emt 0:00:48]} Kb7 {[%emt 0:00:57]} 33. Kc2 {[%emt 0:00:40]} Kb6 {[%emt 0:02:25]} 34. Kd2 {[%emt 0:03:06]} Kb7 {[%emt 0:02:55]} 35. Kc2 {[%emt 0:00:30]} R8a7 {[%emt 0:01:34]} 36. Kd2 {[%emt 0:00:28]} Nc5 {[%emt 0:02:12]} 37. Rxa6 {[%emt 0:00:24]} Nb3+ {[%emt 0:00:11]} 38. Kd1 {[%emt 0:00:28]} Rxa6 {[%emt 0:00:25]} 39. Rxa6 {[%emt 0:01:07]} Kxa6 {[%emt 0:00:03]} 40. Ke2 {[%emt 0:03:02]} Kb6 {[%emt 0:01:16]} 41. Kd1 {[%emt 0:02:12]} Kb5 {[%emt 0:00:57]} 42. Kc2 {[%emt 0:00:35]} Ka4 {[%emt 0:00:24]} 43. e5 {[%emt 0:04:10]} Kb5 {[%emt 0:01:22]} 44. Na3+ {[%emt 0:00:24]} Kb6 {[%emt 0:00:16]} 45. Nb1 {[%emt 0:00:17]} Kc7 {[%emt 0:00:15]} 46. Nd2 {[%emt 0:00:31]} Nxd2 {[%emt 0:01:06]} 47. Kxd2 {[%emt 0:00:06]} Kd7 {[%emt 0:00:22]} 48. Ke3 {[%emt 0:00:21]} Ke7 {[%emt 0:00:29]} 49. Kf2 {[%emt 0:01:13]} f6 {[%emt 0:00:26]} 50. Ke3 {[%emt 0:00:25]} Kf7 {[%emt 0:01:06]} 51. Kf2 {[%emt 0:03:33]} 1/2-1/2

[Event "LJ Slovak Open 2022"]
[Site "Liptovsky Jan"]
[Date "2022.06.25"]
[Round "4.40"]
[White "Magda, Filip"]
[Black "Carnecky, Michal"]
[Result "1/2-1/2"]
[ECO "E01"]
[WhiteElo "1624"]
[BlackElo "1361"]
[Annotator "NA RC"]
[PlyCount "78"]
[EventDate "2022.06.23"]
[EventType "swiss"]
[EventCountry "SVK"]
[SourceTitle "playchess.com"]
[Source "ChessBase"]
[SourceQuality "1"]
[TimeControl "3600+30"]

1. d4 {[%emt 0:00:12]} d5 {[%emt 0:00:12]} 2. Nf3 {[%emt 0:00:20]} Nf6 {[%emt 0:00:46]} 3. c4 {[%emt 0:00:37]} e6 {[%emt 0:00:39]} 4. g3 {[%emt 0:00:33]} Nc6 {[%emt 0:03:51]} 5. Bg2 {[%emt 0:02:03]} Bb4+ {[%emt 0:01:31]} 6. Nc3 {[%emt 0:01:24]} Ne4 {[%emt 0:01:11]} 7. Qd3 {[%emt 0:03:02]} Bxc3+ {[%emt 0:07:48]} 8. bxc3 {[%emt 0:00:06]} O-O {[%emt 0:00:35]} 9. O-O {[%emt 0:01:33]} Bd7 {[%emt 0:02:30]} 10. Ba3 {[%emt 0:03:24]} Re8 {[%emt 0:00:27]} 11. Rab1 {[%emt 0:02:46]} Na5 {[%emt 0:02:37]} 12. Ne5 {[%emt 0:05:18]} f6 {[%emt 0:01:03]} 13. Nxd7 {[%emt 0:05:14]} Qxd7 {[%emt 0:00:18]} 14. Bxe4 {[%emt 0:01:02]} dxe4 {[%emt 0:00:23]} 15. Qxe4 {[%emt 0:00:14]} Nxc4 {[%emt 0:00:59]} 16. Bc1 {[%emt 0:00:48]} Nd6 {[%emt 0:02:59]} 17. Qd3 {[%emt 0:01:28]} Rab8 {[%emt 0:01:44]} 18. e4 {[%emt 0:01:59]} Nf7 {[%emt 0:01:24]} 19. Be3 {[%emt 0:04:02]} f5 {[%emt 0:05:55]} 20. exf5 {[%emt 0:01:58]} exf5 {[%emt 0:00:35]} 21. Bf4 {[%emt 0:01:57]} g5 {[%emt 0:02:51]} 22. Be3 {[%emt 0:00:46]} Ne5 {[%emt 0:00:36]} 23. Qd1 {[%emt 0:01:20]} Nf7 {[%emt 0:02:25]} 24. Qb3 {[%emt 0:04:16]} Kg7 {[%emt 0:01:23]} 25. d5 {[%emt 0:02:08]} f4 {[%emt 0:00:25]} 26. Bxa7 {[%emt 0:11:31]} f3 {[%emt 0:02:06]} 27. Bd4+ {[%emt 0:01:46]} Kh6 {[%emt 0:05:16]} 28. c4 {[%emt 0:01:47]} Qg4 {[%emt 0:01:32]} 29. Qc3 {[%emt 0:01:23]} Kh5 {[%emt 0:07:03]} 30. Rfe1 {[%emt 0:02:13]} Qf5 {[%emt 0:04:55]} 31. h3 {[%emt 0:01:42]} g4 {[%emt 0:01:29]} 32. h4 {[%emt 0:01:00]} Nd6 {[%emt 0:01:08]} 33. Rbc1 {[%emt 0:02:17]} Rxe1+ {[%emt 0:02:00]} 34. Rxe1 {[%emt 0:00:29]} Re8 {[%emt 0:00:08]} 35. Rxe8 {[%emt 0:01:02]} Nxe8 {[%emt 0:00:06]} 36. Qe1 {[%emt 0:00:32]} Nd6 {[%emt 0:01:08]} 37. Qe5 {[%emt 0:00:37]} Kg6 {[%emt 0:01:03]} 38. Qg7+ {[%emt 0:01:53]} Kh5 {[%emt 0:00:27]} 39. Qe5 {[%emt 0:00:20]} Kg6 {[%emt 0:02:55]} 1/2-1/2

[Event "LJ Slovak Open 2022"]
[Site "Liptovsky Jan"]
[Date "2022.06.25"]
[Round "4.41"]
[White "Ihnat, Marek"]
[Black "Subjakova, Kristina"]
[Result "0-1"]
[ECO "C79"]
[WhiteElo "2045"]
[BlackElo "1623"]
[Annotator "RC"]
[PlyCount "76"]
[EventDate "2022.06.23"]
[EventType "swiss"]
[EventCountry "SVK"]
[SourceTitle "playchess.com"]
[Source "ChessBase"]
[SourceQuality "1"]
[TimeControl "3600+30"]

1. e4 {[%emt 0:00:07]} e5 {[%emt 0:00:05]} 2. Nf3 {[%emt 0:00:09]} Nc6 {[%emt 0:00:06]} 3. Bb5 {[%emt 0:00:07]} a6 {[%emt 0:00:07]} 4. Ba4 {[%emt 0:00:07]} Nf6 {[%emt 0:00:11]} 5. O-O {[%emt 0:00:10]} d6 {[%emt 0:00:07]} 6. h3 {[%emt 0:00:33]} Nxe4 {[%emt 0:00:42]} 7. d4 {[%emt 0:00:25]} Bd7 {[%emt 0:08:59]} 8. Re1 {[%emt 0:03:19]} Nf6 {[%emt 0:01:37]} 9. Bxc6 {[%emt 0:02:42]} Bxc6 {[%emt 0:00:41]} 10. dxe5 {[%emt 0:00:18]} dxe5 {[%emt 0:01:16]} 11. Rxe5+ {[%emt 0:01:12]} Be7 {[%emt 0:00:10]} 12. Qe2 {[%emt 0:04:39]} Bb5 {[%emt 0:02:39]} 13. Qe1 {[%emt 0:03:12]} Bc4 {[%emt 0:01:09]} 14. b3 {[%emt 0:05:12]} Be6 {[%emt 0:01:55]} 15. Ng5 {[%emt 0:01:11]} Bc8 {[%emt 0:07:47]} 16. Ba3 {[%emt 0:02:22]} Ng8 {[%emt 0:00:41]} 17. Nf3 {[%emt 0:03:11]} f6 {[%emt 0:00:18]} 18. Re3 {[%emt 0:01:01]} Kf7 {[%emt 0:01:26]} 19. Bb2 {[%emt 0:02:09]} Bc5 {[%emt 0:02:39]} 20. Re2 {[%emt 0:01:34]} Bf5 {[%emt 0:03:15]} 21. a3 {[%emt 0:06:27]} Ne7 {[%emt 0:01:21]} 22. b4 {[%emt 0:01:44]} Bd6 {[%emt 0:00:47]} 23. Nc3 {[%emt 0:02:47]} Re8 {[%emt 0:01:16]} 24. Rd1 {[%emt 0:03:25]} Nc6 {[%emt 0:00:36]} 25. Nd5 {[%emt 0:03:54]} Bxc2 {[%emt 0:01:36]} 26. Rdd2 {[%emt 0:02:43]} Rxe2 {[%emt 0:01:49]} 27. Rxe2 {[%emt 0:00:16]} Bg6 {[%emt 0:05:46]} 28. Qc3 {[%emt 0:03:57]} Kf8 {[%emt 0:01:47]} 29. Rd2 {[%emt 0:03:38]} Be4 {[%emt 0:01:10]} 30. Nf4 {[%emt 0:01:42]} Qe7 {[%emt 0:02:43]} 31. Nd5 {[%emt 0:02:49]} Qd7 {[%emt 0:02:15]} 32. Nxf6 {[%emt 0:03:49]} gxf6 {[%emt 0:01:13]} 33. Qxf6+ {[%emt 0:00:13]} Kg8 {[%emt 0:00:23]} 34. Qh8+ {[%emt 0:00:36]} Kf7 {[%emt 0:00:08]} 35. Qxa8 {[%emt 0:02:11]} Bxf3 {[%emt 0:07:30]} 36. gxf3 {[%emt 0:00:44]} Bh2+ {[%emt 0:00:10]} 37. Kxh2 {[%emt 0:01:08]} Qxd2 {[%emt 0:00:05]} 38. Qh8 {[%emt 0:01:11]} Qxf2+ {[%emt 0:00:07]} 0-1

[Event "LJ Slovak Open 2022"]
[Site "Liptovsky Jan"]
[Date "2022.06.25"]
[Round "4.42"]
[White "Livnansky, Michal"]
[Black "Kolibik, Jan"]
[Result "1-0"]
[ECO "A38"]
[WhiteElo "1279"]
[BlackElo "1621"]
[Annotator "NA RC"]
[PlyCount "49"]
[EventDate "2022.06.23"]
[EventType "swiss"]
[EventCountry "SVK"]
[SourceTitle "playchess.com"]
[Source "ChessBase"]
[SourceQuality "1"]
[TimeControl "3600+30"]

1. c4 {[%emt 0:00:05]} Nf6 {[%emt 0:00:14]} 2. Nc3 {[%emt 0:00:24]} c5 {[%emt 0:00:40]} 3. Nf3 {[%emt 0:01:11]} g6 {[%emt 0:00:23]} 4. g3 {[%emt 0:00:35]} Bg7 {[%emt 0:00:18]} 5. Bg2 {[%emt 0:00:27]} Nc6 {[%emt 0:00:28]} 6. d3 {[%emt 0:04:34]} d6 {[%emt 0:00:46]} 7. O-O {[%emt 0:02:27]} Bd7 {[%emt 0:00:22]} 8. a3 {[%emt 0:03:44]} a5 {[%emt 0:00:57]} 9. Qb3 {[%emt 0:03:16]} Rb8 {[%emt 0:01:51]} 10. Rb1 {[%emt 0:02:48]} O-O {[%emt 0:00:51]} 11. Bg5 {[%emt 0:00:48]} Na7 {[%emt 0:01:47]} 12. Qa2 {[%emt 0:07:43]} b5 {[%emt 0:03:17]} 13. cxb5 {[%emt 0:05:55]} Be6 {[%emt 0:00:56]} 14. b3 {[%emt 0:03:45]} Nxb5 {[%emt 0:01:18]} 15. Nxb5 {[%emt 0:02:52]} Rxb5 {[%emt 0:00:32]} 16. Nd2 {[%emt 0:04:45]} Nd5 {[%emt 0:01:47]} 17. Bxd5 {[%emt 0:01:08]} Bxd5 {[%emt 0:00:22]} 18. Nc4 {[%emt 0:01:34]} Bxc4 {[%emt 0:08:29]} 19. bxc4 {[%emt 0:01:47]} Rxb1 {[%emt 0:01:34]} 20. Rxb1 {[%emt 0:00:20]} Qc7 {[%emt 0:00:23]} 21. Qb3 {[%emt 0:00:50]} Ra8 {[%emt 0:07:09]} 22. Qb7 {[%emt 0:02:12]} Ra7 {[%emt 0:01:44]} 23. Qxc7 {[%emt 0:01:48]} Rxc7 {[%emt 0:00:09]} 24. Rb8+ {[%emt 0:00:01]} Bf8 {[%emt 0:01:00]} 25. Bh6 {[%emt 0:00:03]} 1-0

[Event "LJ Slovak Open 2022"]
[Site "Liptovsky Jan"]
[Date "2022.06.25"]
[Round "4.43"]
[White "Polacok, Jozef"]
[Black "Kaminsky, Ladislav"]
[Result "0-1"]
[ECO "D04"]
[WhiteElo "1386"]
[BlackElo "1615"]
[Annotator "NA"]
[PlyCount "86"]
[EventDate "2022.06.23"]
[EventType "swiss"]
[EventCountry "SVK"]
[SourceTitle "playchess.com"]
[Source "ChessBase"]
[SourceQuality "1"]
[TimeControl "3600+30"]

1. d4 {[%emt 0:00:05]} d5 {[%emt 0:00:06]} 2. Nf3 {[%emt 0:00:21]} Nf6 {[%emt 0:00:13]} 3. e3 {[%emt 0:00:34]} Bg4 {[%emt 0:00:54]} 4. Nbd2 {[%emt 0:00:45]} e6 {[%emt 0:00:15]} 5. c3 {[%emt 0:01:53]} Bd6 {[%emt 0:02:37]} 6. Bd3 {[%emt 0:01:30]} O-O {[%emt 0:00:25]} 7. O-O {[%emt 0:00:41]} c5 {[%emt 0:00:14]} 8. Qe1 {[%emt 0:06:36]} Nbd7 {[%emt 0:00:57]} 9. h3 {[%emt 0:00:51]} Bh5 {[%emt 0:01:24]} 10. Nh2 {[%emt 0:04:35]} Qc7 {[%emt 0:00:53]} 11. Nhf3 {[%emt 0:00:44]} c4 {[%emt 0:00:43]} 12. Bc2 {[%emt 0:00:44]} Rfe8 {[%emt 0:07:15]} 13. Bd1 {[%emt 0:03:10]} Bg6 {[%emt 0:02:18]} 14. b3 {[%emt 0:02:27]} b5 {[%emt 0:00:07]} 15. a4 {[%emt 0:02:28]} a6 {[%emt 0:00:16]} 16. Ba3 {[%emt 0:01:02]} cxb3 {[%emt 0:07:47]} 17. Bxd6 {[%emt 0:00:24]} Qxd6 {[%emt 0:00:11]} 18. Nxb3 {[%emt 0:00:13]} Bd3 {[%emt 0:02:30]} 19. Be2 {[%emt 0:00:15]} Bc4 {[%emt 0:00:38]} 20. Nbd2 {[%emt 0:01:58]} Bxe2 {[%emt 0:02:12]} 21. Qxe2 {[%emt 0:00:07]} Rec8 {[%emt 0:00:18]} 22. Qd3 {[%emt 0:01:03]} Qc6 {[%emt 0:01:37]} 23. axb5 {[%emt 0:02:50]} axb5 {[%emt 0:00:11]} 24. Rxa8 {[%emt 0:00:22]} Rxa8 {[%emt 0:00:08]} 25. Rb1 {[%emt 0:00:53]} Rb8 {[%emt 0:05:30]} 26. Ne1 {[%emt 0:00:53]} Ne4 {[%emt 0:03:03]} 27. Nxe4 {[%emt 0:00:59]} dxe4 {[%emt 0:00:05]} 28. Qd2 {[%emt 0:00:21]} Nb6 {[%emt 0:03:18]} 29. Nc2 {[%emt 0:01:43]} Nd5 {[%emt 0:01:53]} 30. Nb4 {[%emt 0:03:33]} Qxc3 {[%emt 0:03:20]} 31. Qxc3 {[%emt 0:00:19]} Nxc3 {[%emt 0:00:11]} 32. Rb2 {[%emt 0:02:10]} Nd5 {[%emt 0:02:05]} 33. Nxd5 {[%emt 0:00:20]} exd5 {[%emt 0:00:16]} 34. Kf1 {[%emt 0:00:01]} f5 {[%emt 0:00:36]} 35. Ke2 {[%emt 0:00:18]} Kf7 {[%emt 0:00:24]} 36. Kd2 {[%emt 0:00:22]} Ke6 {[%emt 0:00:43]} 37. Kc3 {[%emt 0:00:14]} g5 {[%emt 0:00:19]} 38. Kb4 {[%emt 0:00:11]} h5 {[%emt 0:01:56]} 39. Rc2 {[%emt 0:00:05]} Kd6 {[%emt 0:02:36]} 40. Rc5 {[%emt 0:00:29]} h4 {[%emt 0:00:38]} 41. Rxb5 {[%emt 0:03:51]} Rxb5+ {[%emt 0:00:09]} 42. Kxb5 {[%emt 0:00:06]} g4 {[%emt 0:00:25]} 43. hxg4 {[%emt 0:00:49]} fxg4 {[%emt 0:00:12]} 0-1

[Event "LJ Slovak Open 2022"]
[Site "Liptovsky Jan"]
[Date "2022.06.25"]
[Round "4.44"]
[White "Marcek, Jan"]
[Black "Nedoba, Jakub"]
[Result "1-0"]
[ECO "B01"]
[WhiteElo "1588"]
[BlackElo "1158"]
[Annotator "NA RC"]
[PlyCount "71"]
[EventDate "2022.06.23"]
[EventType "swiss"]
[EventCountry "SVK"]
[SourceTitle "playchess.com"]
[Source "ChessBase"]
[SourceQuality "1"]
[TimeControl "3600+30"]

1. e4 {[%emt 0:00:10]} d5 {[%emt 0:02:29]} 2. e5 {[%emt 0:01:25]} Bf5 {[%emt 0:00:11]} 3. d4 {[%emt 0:01:06]} e6 {[%emt 0:00:25]} 4. Nf3 {[%emt 0:00:26]} c5 {[%emt 0:02:13]} 5. c3 {[%emt 0:01:04]} Nc6 {[%emt 0:01:15]} 6. Bd3 {[%emt 0:01:56]} Bg6 {[%emt 0:01:41]} 7. O-O {[%emt 0:00:24]} Nge7 {[%emt 0:03:16]} 8. Na3 {[%emt 0:04:29]} a6 {[%emt 0:03:20]} 9. Nc2 {[%emt 0:01:29]} Nf5 {[%emt 0:04:32]} 10. Re1 {[%emt 0:02:12]} b5 {[%emt 0:04:29]} 11. Ne3 {[%emt 0:03:20]} Nxe3 {[%emt 0:01:11]} 12. Bxe3 {[%emt 0:03:38]} Be7 {[%emt 0:10:31]} 13. dxc5 {[%emt 0:00:47]} b4 {[%emt 0:04:14]} 14. Qe2 {[%emt 0:04:10]} Qc8 {[%emt 0:04:02]} 15. a3 {[%emt 0:04:34]} bxc3 {[%emt 0:01:09]} 16. b4 {[%emt 0:01:47]} Bh5 {[%emt 0:06:04]} 17. Qf1 {[%emt 0:07:43]} Bxf3 {[%emt 0:02:14]} 18. gxf3 {[%emt 0:03:20]} Nxe5 {[%emt 0:02:40]} 19. Be2 {[%emt 0:00:42]} Nc6 {[%emt 0:04:07]} 20. Qg2 {[%emt 0:04:53]} Bf6 {[%emt 0:01:27]} 21. Rac1 {[%emt 0:00:30]} h5 {[%emt 0:01:35]} 22. f4 {[%emt 0:00:24]} d4 {[%emt 0:01:00]} 23. b5 {[%emt 0:00:58]} axb5 {[%emt 0:01:05]} 24. Bxb5 {[%emt 0:00:22]} dxe3 {[%emt 0:01:04]} 25. Bxc6+ {[%emt 0:01:20]} Ke7 {[%emt 0:00:22]} 26. Rxe3 {[%emt 0:01:27]} Rxa3 {[%emt 0:01:13]} 27. f5 {[%emt 0:00:50]} Qa6 {[%emt 0:03:13]} 28. fxe6 {[%emt 0:01:12]} Ra1 {[%emt 0:01:20]} 29. exf7+ {[%emt 0:01:19]} Kxf7 {[%emt 0:00:11]} 30. Qd5+ {[%emt 0:05:12]} Kg6 {[%emt 0:01:52]} 31. Rg3+ {[%emt 0:00:20]} Kh6 {[%emt 0:00:52]} 32. Rxa1 {[%emt 0:02:39]} Qxa1+ {[%emt 0:00:21]} 33. Kg2 {[%emt 0:00:04]} Rd8 {[%emt 0:00:38]} 34. Qf7 {[%emt 0:00:43]} Qb1 {[%emt 0:00:38]} 35. Bf3 {[%emt 0:00:36]} c2 {[%emt 0:00:29]} 36. Qxh5# {[%emt 0:00:11]} 1-0

[Event "LJ Slovak Open 2022"]
[Site "Liptovsky Jan"]
[Date "2022.06.25"]
[Round "4.45"]
[White "Mazak, Ryan"]
[Black "Magda, Juraj"]
[Result "1-0"]
[ECO "C56"]
[WhiteElo "1575"]
[BlackElo "1301"]
[Annotator "NA RC"]
[PlyCount "51"]
[EventDate "2022.06.23"]
[EventType "swiss"]
[EventCountry "SVK"]
[SourceTitle "playchess.com"]
[Source "ChessBase"]
[SourceQuality "1"]
[TimeControl "3600+30"]

1. e4 {[%emt 0:00:05]} e5 {[%emt 0:00:06]} 2. Bc4 {[%emt 0:00:14]} Nf6 {[%emt 0:00:17]} 3. d4 {[%emt 0:00:13]} exd4 {[%emt 0:01:20]} 4. Nf3 {[%emt 0:00:22]} Nc6 {[%emt 0:00:19]} 5. e5 {[%emt 0:03:19]} Qe7 {[%emt 0:03:25]} 6. O-O {[%emt 0:01:20]} Ng8 {[%emt 0:06:04]} 7. Nxd4 {[%emt 0:03:12]} Nxe5 {[%emt 0:02:00]} 8. Re1 {[%emt 0:02:34]} d6 {[%emt 0:00:09]} 9. f4 {[%emt 0:00:36]} Bg4 {[%emt 0:02:20]} 10. Be2 {[%emt 0:04:17]} Bxe2 {[%emt 0:03:19]} 11. Rxe2 {[%emt 0:00:21]} O-O-O {[%emt 0:00:18]} 12. Qe1 {[%emt 0:02:16]} f6 {[%emt 0:01:48]} 13. Nc3 {[%emt 0:01:28]} g5 {[%emt 0:02:15]} 14. fxe5 {[%emt 0:00:34]} dxe5 {[%emt 0:00:16]} 15. Nb3 {[%emt 0:01:06]} Qg7 {[%emt 0:02:03]} 16. Be3 {[%emt 0:01:00]} Bb4 {[%emt 0:00:35]} 17. a3 {[%emt 0:00:42]} Bxc3 {[%emt 0:00:37]} 18. Qxc3 {[%emt 0:00:21]} a6 {[%emt 0:01:46]} 19. Rd2 {[%emt 0:02:02]} Ne7 {[%emt 0:02:09]} 20. Rad1 {[%emt 0:00:44]} Nc6 {[%emt 0:00:30]} 21. Rxd8+ {[%emt 0:00:29]} Nxd8 {[%emt 0:00:17]} 22. Nc5 {[%emt 0:04:10]} Nc6 {[%emt 0:01:22]} 23. Qd3 {[%emt 0:01:09]} Rd8 {[%emt 0:01:25]} 24. Qxd8+ {[%emt 0:00:23]} Nxd8 {[%emt 0:03:14]} 25. Rxd8+ {[%emt 0:00:09]} Kxd8 {[%emt 0:00:03]} 26. Ne6+ {[%emt 0:00:07]} 1-0

[Event "LJ Slovak Open 2022"]
[Site "Liptovsky Jan"]
[Date "2022.06.25"]
[Round "4.46"]
[White "Carnecky, Viliam"]
[Black "Dicer, Juraj"]
[Result "1-0"]
[ECO "B72"]
[WhiteElo "1380"]
[BlackElo "1562"]
[Annotator "NA RC"]
[PlyCount "79"]
[EventDate "2022.06.23"]
[EventType "swiss"]
[EventCountry "SVK"]
[SourceTitle "playchess.com"]
[Source "ChessBase"]
[SourceQuality "1"]
[TimeControl "3600+30"]

1. e4 {[%emt 0:00:03]} c5 {[%emt 0:00:08]} 2. Nf3 {[%emt 0:00:05]} Nc6 {[%emt 0:00:17]} 3. d4 {[%emt 0:00:12]} cxd4 {[%emt 0:00:04]} 4. Nxd4 {[%emt 0:00:07]} g6 {[%emt 0:00:23]} 5. Nc3 {[%emt 0:00:34]} Bg7 {[%emt 0:00:08]} 6. Be3 {[%emt 0:00:23]} Nf6 {[%emt 0:00:47]} 7. Bc4 {[%emt 0:02:13]} O-O {[%emt 0:01:04]} 8. O-O {[%emt 0:01:56]} d6 {[%emt 0:00:43]} 9. h3 {[%emt 0:01:30]} a6 {[%emt 0:01:41]} 10. f4 {[%emt 0:03:42]} Na5 {[%emt 0:02:09]} 11. Be2 {[%emt 0:08:09]} Qc7 {[%emt 0:00:44]} 12. Qd2 {[%emt 0:18:24]} Nc4 {[%emt 0:04:07]} 13. Bxc4 {[%emt 0:01:39]} Qxc4 {[%emt 0:00:04]} 14. Qd3 {[%emt 0:01:34]} Qc7 {[%emt 0:01:05]} 15. Nd5 {[%emt 0:01:38]} Nxd5 {[%emt 0:01:17]} 16. exd5 {[%emt 0:00:10]} b5 {[%emt 0:02:20]} 17. c3 {[%emt 0:01:26]} Bb7 {[%emt 0:00:38]} 18. Nf3 {[%emt 0:01:40]} e6 {[%emt 0:02:18]} 19. dxe6 {[%emt 0:01:37]} fxe6 {[%emt 0:00:16]} 20. Rad1 {[%emt 0:01:20]} Rad8 {[%emt 0:00:52]} 21. Ng5 {[%emt 0:01:26]} Rfe8 {[%emt 0:08:09]} 22. Ne4 {[%emt 0:02:39]} Qc6 {[%emt 0:03:07]} 23. Rfe1 {[%emt 0:08:19]} Ba8 {[%emt 0:06:31]} 24. Bf2 {[%emt 0:04:01]} d5 {[%emt 0:03:02]} 25. Ng5 {[%emt 0:03:48]} Rd6 {[%emt 0:06:49]} 26. Bg3 {[%emt 0:02:19]} Bf6 {[%emt 0:08:49]} 27. Nf3 {[%emt 0:01:01]} Rdd8 {[%emt 0:00:16]} 28. Nd4 {[%emt 0:00:51]} Qb6 {[%emt 0:02:29]} 29. Bf2 {[%emt 0:00:28]} Qd6 {[%emt 0:00:26]} 30. Bg3 {[%emt 0:00:20]} Qb6 {[%emt 0:01:19]} 31. Bf2 {[%emt 0:00:25]} Qc7 {[%emt 0:00:32]} 32. Nxe6 {[%emt 0:01:09]} Qc6 {[%emt 0:04:47]} 33. Nxd8 {[%emt 0:00:15]} Rxd8 {[%emt 0:00:10]} 34. Qf3 {[%emt 0:00:36]} Qd7 {[%emt 0:01:17]} 35. Qg3 {[%emt 0:00:36]} Qc6 {[%emt 0:01:29]} 36. Bd4 {[%emt 0:00:44]} Qd6 {[%emt 0:03:33]} 37. Bxf6 {[%emt 0:00:13]} Qxf6 {[%emt 0:00:02]} 38. Kh1 {[%emt 0:00:11]} Bc6 {[%emt 0:00:44]} 39. Qg5 {[%emt 0:00:18]} Qxg5 {[%emt 0:00:09]} 40. fxg5 {[%emt 0:00:05]} 1-0

[Event "LJ Slovak Open 2022"]
[Site "Liptovsky Jan"]
[Date "2022.06.25"]
[Round "4.47"]
[White "Skutil, Frantisek Elias"]
[Black "Socha, Wiktor"]
[Result "1-0"]
[ECO "B34"]
[WhiteElo "1552"]
[BlackElo "1020"]
[Annotator "NA RC"]
[PlyCount "86"]
[EventDate "2022.06.23"]
[EventType "swiss"]
[EventCountry "SVK"]
[SourceTitle "playchess.com"]
[Source "ChessBase"]
[SourceQuality "1"]
[TimeControl "3600+30"]

1. e4 {[%emt 0:01:16]} c5 {[%emt 0:00:47]} 2. Nf3 {[%emt 0:00:10]} g6 {[%emt 0:00:09]} 3. d4 {[%emt 0:00:11]} cxd4 {[%emt 0:00:09]} 4. Nxd4 {[%emt 0:00:10]} Nc6 {[%emt 0:00:09]} 5. Nc3 {[%emt 0:00:47]} Bg7 {[%emt 0:00:44]} 6. Be3 {[%emt 0:00:11]} Nf6 {[%emt 0:00:33]} 7. Be2 {[%emt 0:02:49]} O-O {[%emt 0:02:18]} 8. O-O {[%emt 0:00:14]} d5 {[%emt 0:02:52]} 9. Nxc6 {[%emt 0:05:24]} bxc6 {[%emt 0:00:41]} 10. exd5 {[%emt 0:05:07]} cxd5 {[%emt 0:01:19]} 11. Bf3 {[%emt 0:01:40]} e6 {[%emt 0:00:34]} 12. Rc1 {[%emt 0:02:10]} Qe7 {[%emt 0:11:30]} 13. Ne2 {[%emt 0:09:26]} Bb7 {[%emt 0:02:21]} 14. Qd2 {[%emt 0:14:08]} Rfd8 {[%emt 0:01:28]} 15. Rfd1 {[%emt 0:01:49]} Ne8 {[%emt 0:14:33]} 16. c3 {[%emt 0:01:34]} Nc7 {[%emt 0:01:25]} 17. Bg5 {[%emt 0:04:51]} f6 {[%emt 0:01:31]} 18. Bh6 {[%emt 0:00:47]} Rab8 {[%emt 0:02:53]} 19. Bxg7 {[%emt 0:00:21]} Kxg7 {[%emt 0:01:12]} 20. Qe3 {[%emt 0:03:02]} Ra8 {[%emt 0:01:45]} 21. c4 {[%emt 0:02:25]} Qf7 {[%emt 0:07:03]} 22. cxd5 {[%emt 0:02:23]} exd5 {[%emt 0:01:14]} 23. Nf4 {[%emt 0:02:56]} Re8 {[%emt 0:02:16]} 24. Qc5 {[%emt 0:00:30]} Na6 {[%emt 0:07:45]} 25. Qa5 {[%emt 0:01:18]} Qe7 {[%emt 0:02:02]} 26. Nxd5 {[%emt 0:03:08]} Qe5 {[%emt 0:00:37]} 27. Qc3 {[%emt 0:01:00]} Bxd5 {[%emt 0:02:21]} 28. Bxd5 {[%emt 0:01:51]} Rad8 {[%emt 0:01:32]} 29. Qxe5 {[%emt 0:01:35]} Rxe5 {[%emt 0:00:05]} 30. Bc4 {[%emt 0:00:40]} Rxd1+ {[%emt 0:01:11]} 31. Rxd1 {[%emt 0:00:10]} Nc7 {[%emt 0:00:30]} 32. Rd7+ {[%emt 0:00:16]} Kh6 {[%emt 0:00:14]} 33. Rxc7 {[%emt 0:00:14]} Re1+ {[%emt 0:00:39]} 34. Bf1 {[%emt 0:00:08]} Rb1 {[%emt 0:00:21]} 35. Rb7 {[%emt 0:00:13]} a5 {[%emt 0:00:24]} 36. Rb5 {[%emt 0:00:52]} a4 {[%emt 0:00:49]} 37. b3 {[%emt 0:01:21]} axb3 {[%emt 0:00:33]} 38. axb3 {[%emt 0:00:20]} g5 {[%emt 0:00:10]} 39. g3 {[%emt 0:00:36]} Kg6 {[%emt 0:00:11]} 40. Kg2 {[%emt 0:00:18]} h5 {[%emt 0:00:29]} 41. Bd3+ {[%emt 0:00:06]} Kh6 {[%emt 0:00:38]} 42. Bxb1 {[%emt 0:00:06]} Kg7 {[%emt 0:00:37]} 43. Rb7+ {[%emt 0:00:10]} Kh6 {[%emt 0:00:29]} 1-0